bitfinex/quotes_BTCUSD_20250221
["timestamp","ask_amount","ask_price","bid_price","bid_amount"]
[1740100453104,0.0008515,98301.0,98300.0,0.39279067]
[1740100453835,0.0008515,98301.0,98300.0,0.38679067]
[1740100454011,0.0008515,98301.0,98300.0,0.39379067]
[1740100454415,0.0008515,98301.0,98300.0,0.38679067]
[1740100454760,0.0008515,98301.0,98300.0,0.39379067]
[1740100466270,0.0008515,98301.0,98300.0,0.38679067]
[1740100466642,0.0008515,98301.0,98300.0,0.39379067]
[1740100467830,0.0008515,98301.0,98300.0,0.23419667]
[1740100468178,0.0008515,98301.0,98300.0,0.39279067]
[1740100468690,0.0008515,98301.0,98300.0,0.38579067]
[1740100469056,0.0008515,98301.0,98300.0,0.37979067]
[1740100469230,0.0008515,98301.0,98300.0,0.38679067]
[1740100469426,0.0008515,98301.0,98300.0,0.39279067]
[1740100469639,0.0008515,98301.0,98300.0,0.16585067]
[1740100469832,0.0008515,98301.0,98300.0,0.15885067]
[1740100470168,0.0008515,98301.0,98300.0,0.16585067]
[1740100519649,0.0008515,98301.0,98300.0,0.01325667]
[1740100522544,0.1534435,98301.0,98300.0,0.01325667]
[1740100523081,0.0008515,98301.0,98300.0,0.01325667]
[1740100523439,0.0008515,98301.0,98300.0,0.00625667]
[1740100523762,0.0008515,98301.0,98300.0,0.01325667]
[1740100523959,0.0008515,98301.0,98300.0,0.00725667]
[1740100524367,0.0008515,98301.0,98300.0,0.01125667]
[1740100524953,0.0008515,98301.0,98300.0,0.00425667]
[1740100525166,0.05298378,98301.0,98300.0,0.00425667]
[1740100525509,0.05298378,98301.0,98300.0,0.01125667]
[1740100526338,0.0757,98308.0,98300.0,0.01125667]
[1740100526693,0.152587,98305.0,98300.0,0.01125667]
[1740100526898,0.152584,98307.0,98300.0,0.01125667]
[1740100527504,0.152584,98307.0,98301.0,0.152592]
[1740100529236,0.0757,98308.0,98301.0,0.159592]
[1740100529977,0.0757,98308.0,98302.0,0.15259]
[1740100530223,0.228282,98308.0,98302.0,0.15259]
[1740100530511,0.228282,98308.0,98300.0,0.00225667]
[1740100530512,0.152583,98307.0,98301.0,0.152591]
[1740100531289,0.152583,98307.0,98301.0,0.154591]
[1740100531647,0.152583,98307.0,98301.0,0.161591]
[1740100531987,0.152583,98307.0,98301.0,0.154591]
[1740100532384,0.152583,98307.0,98301.0,0.161591]
[1740100532849,0.0757,98308.0,98302.0,0.15259]
[1740100533022,0.0757,98308.0,98305.0,0.152586]
[1740100533222,0.0757,98308.0,98305.0,0.152585]
[1740100533428,0.0757,98308.0,98302.0,0.203454]
[1740100533650,0.1044287,98315.0,98301.0,0.009]
[1740100533651,0.3078467,98320.0,98307.0,0.152583]
[1740100533851,0.18444569,98318.0,98315.0,0.15257]
[1740100534036,0.18444569,98318.0,98317.0,0.152567]
[1740100534265,0.0451,98322.0,98305.0,0.001]
[1740100534400,0.1044287,98330.0,98305.0,0.001]
[1740100534401,0.1044287,98330.0,98318.0,0.203421]
[1740100534597,0.10264569,98329.0,98318.0,0.203421]
[1740100534797,0.001,98319.0,98308.0,0.01014049]
[1740100535059,0.001,98319.0,98318.0,0.152566]
[1740100535259,0.1044287,98320.0,98319.0,0.152564]
[1740100535510,0.1044287,98328.0,98323.0,0.152557]
[1740100535684,0.16287014,98330.0,98323.0,0.152557]
[1740100535934,0.01032214,98330.0,98324.0,0.152556]
[1740100536148,0.01032214,98330.0,98310.0,0.203438]
[1740100536350,0.0818,98332.0,98323.0,0.152557]
[1740100536523,0.10264569,98331.0,98323.0,0.152557]
[1740100536905,0.08564569,98331.0,98323.0,0.152557]
[1740100537369,0.152549,98329.0,98323.0,0.152557]
[1740100538418,0.152549,98329.0,98320.0,0.152562]
[1740100538630,0.152552,98327.0,98318.0,0.152564]
[1740100538844,0.21376014,98330.0,98323.0,0.001]
[1740100539193,0.15255,98329.0,98323.0,0.001]
[1740100539350,0.21376014,98330.0,98310.0,0.203438]
[1740100539351,0.152551,98328.0,98310.0,0.203438]
[1740100539549,0.01036214,98330.0,98310.0,0.203438]
[1740100539864,0.08564569,98331.0,98310.0,0.203438]
[1740100539865,0.152552,98327.0,98321.0,0.152561]
[1740100540224,0.152552,98327.0,98310.0,0.203438]
[1740100540435,0.16014812,98327.0,98322.0,0.152559]
[1740100540635,0.17660119,98327.0,98322.0,0.152559]
[1740100540833,0.02404919,98327.0,98310.0,0.203438]
[1740100541032,0.02404919,98327.0,98308.0,0.01005299]
[1740100541267,0.02404919,98327.0,98326.0,0.152553]
[1740100541676,0.01645307,98327.0,98326.0,0.152553]
[1740100541847,0.08564569,98331.0,98326.0,0.152553]
[1740100542049,0.08564569,98331.0,98327.0,0.152551]
[1740100542253,0.08564569,98331.0,98324.0,0.203408]
[1740100542640,0.08564569,98331.0,98327.0,0.152551]
[1740100543002,0.08564569,98331.0,98326.0,0.158553]
[1740100543122,0.00759434,98330.0,98326.0,0.152553]
[1740100543724,0.00759434,98330.0,98328.0,0.15255]
[1740100543725,0.02404529,98330.0,98328.0,0.15255]
[1740100544284,0.02404529,98330.0,98329.0,0.152549]
[1740100544489,0.01645095,98330.0,98329.0,0.152549]
[1740100545639,0.01645095,98330.0,98329.0,0.157549]
[1740100545837,0.02404351,98330.0,98329.0,0.157549]
[1740100546245,0.00759256,98330.0,98329.0,0.157549]
[1740100546489,0.0008509,98330.0,98329.0,0.157549]
[1740100547087,0.02488686,98330.0,98329.0,0.157549]
[1740100548840,0.00844129,98330.0,98329.0,0.157549]
[1740100549254,0.00844129,98330.0,98329.0,0.152549]
[1740100549617,0.0008509,98330.0,98329.0,0.157549]
[1740100550828,0.0008509,98330.0,98329.0,0.152549]
[1740100551206,0.0008509,98330.0,98329.0,0.158549]
[1740100561585,0.00844544,98330.0,98329.0,0.158549]
[1740100567405,0.0008509,98330.0,98329.0,0.158549]
[1740100568781,0.00845161,98330.0,98329.0,0.158549]
[1740100570701,0.00845161,98330.0,98329.0,0.152549]
[1740100570902,0.00845161,98330.0,98329.0,0.159549]
[1740100571508,0.00845161,98330.0,98329.0,0.161549]
[1740100574140,0.00845161,98330.0,98329.0,0.39659469]
[1740100574767,0.00845161,98330.0,98329.0,0.38959469]
[1740100574967,0.00845161,98330.0,98329.0,0.38759469]
[1740100576265,0.00845161,98330.0,98329.0,0.39759469]
[1740100576613,0.0008509,98330.0,98329.0,0.39459469]
[1740100576967,0.0008509,98330.0,98329.0,0.40159469]
[1740100577143,0.0008509,98330.0,98329.0,0.39459469]
[1740100577345,0.0008509,98330.0,98329.0,0.40159469]
[1740100577939,0.0008509,98330.0,98329.0,0.65336309]
[1740100579157,0.0008509,98330.0,98329.0,0.64636309]
[1740100579367,0.0008509,98330.0,98329.0,0.65336309]
[1740100579653,0.0008509,98330.0,98329.0,0.64636309]
[1740100580292,0.0008509,98330.0,98329.0,0.65336309]
[1740100581995,0.0008507,98331.0,98330.0,0.427647]
[1740100581996,6e-07,98331.0,98330.0,0.427647]
[1740100582105,6e-07,98331.0,98330.0,0.53029269]
[1740100583154,4.386e-05,98331.0,98330.0,0.53029269]
[1740100583357,4.386e-05,98331.0,98330.0,0.53729269]
[1740100583694,4.386e-05,98331.0,98330.0,0.54429269]
[1740100585083,4.386e-05,98331.0,98330.0,0.53729269]
[1740100585308,4.386e-05,98331.0,98330.0,0.54429269]
[1740100585506,4.386e-05,98331.0,98330.0,1.30963269]
[1740100586293,4.386e-05,98331.0,98330.0,1.30263269]
[1740100586842,4.386e-05,98331.0,98330.0,1.41453724]
[1740100587065,4.386e-05,98331.0,98330.0,1.42153724]
[1740100589671,4.386e-05,98331.0,98330.0,1.41453724]
[1740100589901,4.386e-05,98331.0,98330.0,1.40753724]
[1740100590230,4.386e-05,98331.0,98330.0,1.41453724]
[1740100590569,4.386e-05,98331.0,98330.0,1.42153724]
[1740100590981,4.386e-05,98331.0,98330.0,1.32995005]
[1740100606630,4.386e-05,98331.0,98330.0,1.36166687]
[1740100608399,4.386e-05,98331.0,98330.0,1.45284037]
[1740100611401,4.386e-05,98331.0,98330.0,1.36166687]
[1740100618898,4.386e-05,98331.0,98330.0,1.28176687]
[1740100620540,4.386e-05,98331.0,98330.0,1.23656687]
[1740100621344,4.386e-05,98331.0,98330.0,1.08656687]
[1740100621681,4.386e-05,98331.0,98330.0,1.05485005]
[1740100621972,4.386e-05,98331.0,98330.0,1.15661765]
[1740100622117,4.386e-05,98331.0,98330.0,1.33840798]
[1740100622502,4.386e-05,98331.0,98330.0,1.33140798]
[1740100622708,4.386e-05,98331.0,98330.0,1.33840798]
[1740100623007,4.386e-05,98331.0,98330.0,1.33140798]
[1740100623471,4.386e-05,98331.0,98330.0,1.33840798]
[1740100623889,4.386e-05,98331.0,98330.0,1.33140798]
[1740100624252,4.386e-05,98331.0,98330.0,1.33840798]
[1740100624842,4.386e-05,98331.0,98330.0,1.33140798]
[1740100625047,4.386e-05,98331.0,98330.0,1.33840798]
[1740100627080,4.386e-05,98331.0,98330.0,0.80000798]
[1740100641911,4.386e-05,98331.0,98330.0,0.54824038]
[1740100642116,0.08284386,98331.0,98330.0,0.51645005]
[1740100642361,0.12924386,98331.0,98330.0,0.393487]
[1740100642905,0.12924386,98331.0,98330.0,0.379487]
[1740100643103,0.12924386,98331.0,98330.0,0.393487]
[1740100643710,0.12924386,98331.0,98330.0,0.386487]
[1740100643906,0.12924386,98331.0,98330.0,0.393487]
[1740100644981,0.12924386,98331.0,98330.0,0.159547]
[1740100645186,0.12924386,98331.0,98330.0,0.166547]
[1740100667045,0.08284386,98331.0,98330.0,0.166547]
[1740100667582,4.386e-05,98331.0,98330.0,0.166547]
[1740100667793,4.386e-05,98331.0,98330.0,0.26919269]
[1740100668605,4.386e-05,98331.0,98330.0,0.49613269]
[1740100686526,4.386e-05,98331.0,98330.0,0.72313269]
[1740100686728,4.386e-05,98331.0,98330.0,0.75489276]
[1740100686932,4.386e-05,98331.0,98330.0,2.25489276]
[1740100687549,4.386e-05,98331.0,98330.0,0.74789276]
[1740100687989,4.386e-05,98331.0,98330.0,0.75489276]
[1740100688294,4.386e-05,98331.0,98330.0,0.74789276]
[1740100688586,4.386e-05,98331.0,98330.0,0.75489276]
[1740100691781,0.1860287,98360.0,98330.0,0.60234576]
[1740100691954,0.18607201,98360.0,98359.0,0.152502]
[1740100692112,0.08164331,98360.0,98359.0,0.152502]
[1740100693830,4.331e-05,98360.0,98359.0,0.152502]
[1740100694032,4.331e-05,98360.0,98359.0,0.155502]
[1740100694836,4.331e-05,98360.0,98359.0,0.162502]
[1740100697659,0.00763786,98360.0,98359.0,0.162502]
[1740100699149,4.331e-05,98360.0,98359.0,0.162502]
[1740100700847,0.00089431,98360.0,98359.0,0.162502]
[1740100705005,0.00849027,98360.0,98359.0,0.162502]
[1740100705613,0.08879027,98360.0,98359.0,0.162502]
[1740100710670,0.08119431,98360.0,98359.0,0.162502]
[1740100711211,0.08879297,98360.0,98359.0,0.162502]
[1740100716643,0.08879297,98360.0,98359.0,0.155502]
[1740100716970,0.08879297,98360.0,98359.0,0.162502]
[1740100717527,0.08879297,98360.0,98359.0,0.165502]
[1740100722134,0.00849297,98360.0,98359.0,0.165502]
[1740100723313,0.23929397,98360.0,98359.0,0.013]
[1740100723514,0.35648051,98360.0,98359.0,0.013]
[1740100723741,0.40528051,98360.0,98359.0,0.013]
[1740100724331,0.40528051,98360.0,98359.0,0.006]
[1740100724562,0.40528051,98360.0,98359.0,0.013]
[1740100724966,0.40528051,98360.0,98359.0,0.006]
[1740100725409,0.0783,98348.0,98339.0,0.09138807]
[1740100725620,0.0488,98346.0,98340.0,0.152531]
[1740100726839,0.0488,98346.0,98342.0,0.152527]
[1740100727037,0.0488,98346.0,98340.0,0.203375]
[1740100727256,0.0488,98346.0,98341.0,0.15253]
[1740100727401,0.01975401,98345.0,98341.0,0.15253]
[1740100728280,0.01975401,98345.0,98344.0,0.152525]
[1740100728658,0.1044287,98351.0,98350.0,0.152516]
[1740100728973,0.0805,98358.0,98351.0,0.203353]
[1740100729251,0.0805,98358.0,98352.0,0.152513]
[1740100729468,0.0805,98358.0,98353.0,0.15251]
[1740100729663,0.0805,98358.0,98344.0,0.003]
[1740100729871,0.01974721,98357.0,98354.0,0.152508]
[1740100730582,0.01974721,98357.0,98355.0,0.152508]
[1740100731713,0.01974721,98356.0,98355.0,0.152508]
[1740100732164,0.01974721,98356.0,98354.0,0.157509]
[1740100732569,0.01974721,98356.0,98253.0,0.05056444]
[1740100732570,0.01974721,98356.0,98327.0,0.0822]
[1740100732778,0.152527,98343.0,98337.0,0.152535]
[1740100732981,0.4365834,98344.0,98338.0,0.152534]
[1740100733192,0.2840574,98344.0,98331.0,0.001702]
[1740100733411,0.203373,98342.0,98331.0,0.001702]
[1740100733578,0.152539,98335.0,98331.0,0.001702]
[1740100733785,0.16707985,98335.0,98331.0,0.001702]
[1740100733999,0.17746813,98335.0,98331.0,0.001702]
[1740100734151,0.152544,98332.0,98331.0,0.001702]
[1740100734366,0.24228485,98332.0,98331.0,0.001702]
[1740100734769,0.26203206,98332.0,98331.0,0.001702]
[1740100736669,0.26203206,98332.0,98331.0,0.009702]
[1740100737076,0.26203206,98332.0,98331.0,0.002702]
[1740100737282,0.26203206,98332.0,98331.0,0.003702]
[1740100737440,0.26203206,98332.0,98331.0,0.010702]
[1740100744516,0.29877993,98332.0,98331.0,0.010702]
[1740100746755,0.31089791,98332.0,98331.0,0.010702]
[1740100748771,0.31174891,98332.0,98331.0,0.010702]
[1740100752439,0.31174891,98332.0,98331.0,0.003702]
[1740100752615,0.31174891,98332.0,98331.0,0.001702]
[1740100752814,0.31174891,98332.0,98331.0,0.006702]
[1740100753459,0.5643946,98332.0,98331.0,0.006702]
[1740100753870,0.66704029,98332.0,98331.0,0.006702]
[1740100754081,0.5643946,98332.0,98331.0,0.006702]
[1740100754490,0.5643946,98332.0,98331.0,0.001702]
[1740100755024,0.58081241,98332.0,98331.0,0.001702]
[1740100767036,0.60081241,98332.0,98331.0,0.001702]
[1740100768299,0.63176421,98332.0,98331.0,0.001702]
[1740100768538,0.60081241,98332.0,98331.0,0.001702]
[1740100772187,0.15259,98302.0,98301.0,0.0017018]
[1740100772387,0.16713085,98302.0,98301.0,0.0017018]
[1740100773009,0.18354866,98302.0,98301.0,0.0017018]
[1740100773360,0.20326172,98302.0,98301.0,0.0017018]
[1740100773530,0.20326172,98302.0,98301.0,0.00277657]
[1740100773936,0.20326172,98302.0,98301.0,0.00877657]
[1740100774428,0.20326172,98302.0,98301.0,0.00977657]
[1740100774897,0.20326172,98302.0,98301.0,0.00277657]
[1740100775193,0.45590741,98302.0,98301.0,0.00277657]
[1740100776079,0.45590741,98302.0,98301.0,0.00877657]
[1740100776607,0.45690741,98302.0,98301.0,0.00177657]
[1740100776933,0.45590741,98302.0,98301.0,0.00477657]
[1740100777128,0.45690741,98302.0,98301.0,0.00477657]
[1740100777331,0.45690741,98302.0,98301.0,0.00177657]
[1740100777532,0.45690741,98302.0,98301.0,0.00577657]
[1740100778611,0.46451788,98302.0,98301.0,0.00577657]
[1740100793185,0.46451788,98302.0,98301.0,0.15836857]
[1740100793186,0.20167172,98302.0,98301.0,0.15836857]
[1740100793426,0.18713087,98302.0,98301.0,0.00577657]
[1740100793544,0.20167172,98302.0,98301.0,0.00577657]
[1740100793779,0.45690741,98302.0,98301.0,0.00577657]
[1740100794142,0.20167172,98302.0,98301.0,0.00577657]
[1740100794277,0.20167172,98302.0,98301.0,0.15836857]
[1740100795631,0.20167172,98302.0,98301.0,0.00577657]
[1740100796043,0.35426172,98302.0,98301.0,0.00577657]
[1740100798946,0.45690741,98302.0,98301.0,0.00577657]
[1740100802769,0.53860741,98302.0,98301.0,0.00577657]
[1740100802976,0.58440741,98302.0,98301.0,0.00577657]
[1740100803508,0.58340741,98302.0,98301.0,0.00177657]
[1740100804854,0.58340741,98302.0,98301.0,0.00377657]
[1740100805421,0.58340741,98302.0,98301.0,0.00177657]
[1740100805653,0.58640741,98302.0,98301.0,0.00277657]
[1740100805891,0.58340741,98302.0,98301.0,0.00277657]
[1740100806113,0.58740741,98302.0,98301.0,0.00277657]
[1740100808381,0.63877754,98302.0,98301.0,0.00277657]
[1740100808837,0.66510687,98302.0,98301.0,0.00277657]
[1740100809412,0.66510687,98302.0,98301.0,0.00177657]
[1740100809609,0.66710687,98302.0,98301.0,0.00177657]
[1740100809817,0.66310687,98302.0,98301.0,0.00177657]
[1740100810150,0.31715185,98289.0,98288.0,0.001702]
[1740100810471,0.41979754,98289.0,98288.0,0.00174526]
[1740100811698,0.4395106,98289.0,98288.0,0.00174526]
[1740100811891,0.48225774,98289.0,98288.0,0.00174526]
[1740100812029,0.48225774,98289.0,98288.0,0.00474526]
[1740100812505,0.48325774,98289.0,98288.0,0.00474526]
[1740100812923,0.48325774,98289.0,98288.0,0.00174526]
[1740100814267,0.48325774,98289.0,98288.0,0.00374526]
[1740100814908,0.48325774,98289.0,98288.0,0.00174526]
[1740100815100,0.48325774,98289.0,98288.0,0.00474526]
[1740100818818,0.45692841,98289.0,98288.0,0.00474526]
[1740100824902,0.4832355,98289.0,98288.0,0.00474526]
[1740100827596,0.4674355,98289.0,98288.0,0.00474526]
[1740100828354,0.5487355,98289.0,98288.0,0.00474526]
[1740100828558,0.5559755,98289.0,98288.0,0.00474526]
[1740100829327,0.5549755,98289.0,98288.0,0.00474526]
[1740100829481,0.16454085,98288.0,98282.0,0.0017016]
[1740100829682,0.31716085,98283.0,98282.0,0.00175448]
[1740100829883,0.41980654,98283.0,98282.0,0.00175448]
[1740100830346,0.43012406,98283.0,98282.0,0.00175448]
[1740100830567,0.44983712,98283.0,98282.0,0.00175448]
[1740100831114,0.44983712,98283.0,98282.0,0.00275448]
[1740100831668,0.49256202,98283.0,98282.0,0.00275448]
[1740100832865,0.49556202,98283.0,98282.0,0.00275448]
[1740100837874,0.46925493,98283.0,98282.0,0.00275448]
[1740100838072,0.4769373,98283.0,98282.0,0.00275448]
[1740100840688,0.5032363,98283.0,98282.0,0.00275448]
[1740100841906,0.4769373,98283.0,98282.0,0.00275448]
[1740100844778,0.4769373,98283.0,98282.0,0.00194087]
[1740100847003,0.37429161,98283.0,98282.0,0.00194087]
[1740100849555,0.22167161,98283.0,98282.0,0.00194087]
[1740100850136,0.37429161,98283.0,98282.0,0.00194087]
[1740100852717,0.03913087,98283.0,98282.0,0.23016287]
[1740100853387,0.03998227,98283.0,98282.0,0.23016287]
[1740100853775,0.03698227,98283.0,98282.0,0.23016287]
[1740100853993,0.02486429,98283.0,98282.0,0.23016287]
[1740100854144,0.02686429,98283.0,98282.0,0.23016287]
[1740100854362,0.02486429,98283.0,98282.0,0.27546287]
[1740100854546,0.02486429,98283.0,98282.0,0.27746287]
[1740100854750,0.02486429,98283.0,98282.0,0.27946287]
[1740100855129,0.02486429,98283.0,98282.0,0.27546287]
[1740100855271,0.01726921,98283.0,98282.0,0.27546287]
[1740100855499,0.01726921,98283.0,98282.0,0.27746287]
[1740100855712,0.0008514,98283.0,98282.0,0.27746287]
[1740100856507,0.0008514,98283.0,98282.0,0.28446287]
[1740100856727,0.0008514,98283.0,98282.0,0.28246287]
[1740100856943,0.0008514,98283.0,98282.0,0.27546287]
[1740100857279,0.0008514,98283.0,98282.0,0.28546287]
[1740100858053,0.0008514,98283.0,98282.0,0.38810856]
[1740100858674,0.0008514,98283.0,98282.0,0.61504856]
[1740100867554,0.0008514,98283.0,98282.0,1.15344856]
[1740100868099,0.0008514,98283.0,98282.0,1.30344856]
[1740100868208,0.0008514,98283.0,98282.0,1.30044856]
[1740100868412,0.0008514,98283.0,98282.0,1.29344856]
[1740100868656,0.0008514,98288.0,98285.0,0.17]
[1740100868657,8e-07,98288.0,98285.0,0.17]
[1740100868861,8e-07,98288.0,98287.0,0.53485969]
[1740100870459,8e-07,98288.0,98287.0,0.54185969]
[1740100870877,8e-07,98288.0,98287.0,0.54885969]
[1740100873647,8e-07,98288.0,98287.0,1.31419969]
[1740100874839,8e-07,98288.0,98287.0,1.3345232]
[1740100884901,8e-07,98288.0,98287.0,2.8345232]
[1740100888336,8e-07,98288.0,98287.0,2.836226]
[1740100891488,8e-07,98288.0,98287.0,2.8679215]
[1740100891711,8e-07,98288.0,98287.0,2.836226]
[1740100892727,8e-07,98288.0,98287.0,2.86792901]
[1740100897804,8e-07,98288.0,98287.0,2.87520901]
[1740100898505,8e-07,98288.0,98287.0,1.36792901]
[1740100898651,8e-07,98288.0,98287.0,1.213906]
[1740100898834,8e-07,98288.0,98287.0,1.206626]
[1740100899040,8e-07,98288.0,98287.0,1.056626]
[1740100899244,8e-07,98288.0,98287.0,0.88368849]
[1740100899448,8e-07,98288.0,98287.0,1.03630249]
[1740100900284,8e-07,98288.0,98287.0,1.02230249]
[1740100900735,8e-07,98288.0,98287.0,1.03630249]
[1740100901513,8e-07,98288.0,98287.0,1.02930249]
[1740100901692,8e-07,98288.0,98287.0,1.03630249]
[1740100901893,8e-07,98288.0,98287.0,1.06106642]
[1740100902090,8e-07,98288.0,98287.0,1.05406642]
[1740100902338,8e-07,98288.0,98287.0,1.06106642]
[1740100902876,8e-07,98288.0,98287.0,1.05406642]
[1740100903092,8e-07,98288.0,98287.0,1.06106642]
[1740100903666,8e-07,98288.0,98287.0,1.06806642]
[1740100903860,8e-07,98288.0,98287.0,1.06106642]
[1740100904061,8e-07,98288.0,98287.0,1.05406642]
[1740100904259,8e-07,98288.0,98287.0,1.06106642]
[1740100904792,8e-07,98288.0,98287.0,1.05406642]
[1740100905099,8e-07,98288.0,98287.0,1.06106642]
[1740100905943,8e-07,98288.0,98287.0,1.06806642]
[1740100906283,8e-07,98288.0,98287.0,1.23106642]
[1740100906487,8e-07,98288.0,98287.0,1.32956642]
[1740100906694,8e-07,98288.0,98287.0,1.38186642]
[1740100906926,8e-07,98288.0,98287.0,2.88186642]
[1740100907682,8e-07,98288.0,98287.0,2.84786642]
[1740100908077,8e-07,98288.0,98287.0,2.85486642]
[1740100909193,8e-07,98288.0,98287.0,2.86186642]
[1740100909559,8e-07,98288.0,98287.0,2.85486642]
[1740100909735,8e-07,98288.0,98287.0,2.84786642]
[1740100910299,8e-07,98288.0,98287.0,2.85486642]
[1740100910520,8e-07,98288.0,98287.0,2.86186642]
[1740100910775,8e-07,98288.0,98287.0,1.36186642]
[1740100919639,8e-07,98288.0,98287.0,1.21806642]
[1740100919841,8e-07,98288.0,98287.0,1.22534642]
[1740100920820,8e-07,98288.0,98287.0,1.21806642]
[1740100921018,8e-07,98288.0,98287.0,1.19358249]
[1740100926270,8e-07,98288.0,98287.0,1.28509895]
[1740100928063,8e-07,98288.0,98287.0,1.12781895]
[1740100928270,0.0813008,98288.0,98287.0,0.58941895]
[1740100929236,0.0813008,98288.0,98287.0,0.58241895]
[1740100929436,0.0813008,98288.0,98287.0,0.58941895]
[1740100929678,0.0813008,98288.0,98287.0,0.49790249]
[1740100929879,8e-07,98288.0,98287.0,0.49790249]
[1740100930084,8e-07,98288.0,98287.0,0.49090249]
[1740100930293,8e-07,98288.0,98287.0,0.49790249]
[1740100933030,8e-07,98288.0,98287.0,1.03630249]
[1740100934445,0.0753008,98288.0,98287.0,1.03630249]
[1740100935659,8e-07,98288.0,98287.0,1.03630249]
[1740100940445,8e-07,98288.0,98287.0,1.12781895]
[1740100946262,8e-07,98288.0,98287.0,1.03630249]
[1740100952496,8e-07,98288.0,98287.0,1.06807667]
[1740100955183,8e-07,98288.0,98287.0,1.03630249]
[1740100968712,8e-07,98288.0,98287.0,0.49790249]
[1740100980468,8e-07,98288.0,98287.0,1.03630249]
[1740100982258,8e-07,98288.0,98287.0,0.88368849]
[1740100982654,8e-07,98288.0,98287.0,0.7810428]
[1740100983618,0.1248008,98288.0,98287.0,0.7810428]
[1740100983750,0.1248008,98288.0,98287.0,0.7740428]
[1740100984154,0.1488035,98288.0,98287.0,0.7740428]
[1740100984354,0.1488035,98288.0,98287.0,0.9336568]
[1740100984553,0.1488035,98288.0,98287.0,0.9266568]
[1740100984760,0.0240035,98288.0,98287.0,0.9266568]
[1740100984958,0.0240035,98288.0,98287.0,0.9336568]
[1740100985199,0.0240035,98288.0,98287.0,0.9266568]
[1740100985354,0.00761405,98288.0,98287.0,0.9266568]
[1740100985559,0.00761405,98288.0,98287.0,0.9336568]
[1740100986585,0.00761405,98288.0,98287.0,0.3952568]
[1740100987726,0.02400494,98288.0,98287.0,0.3952568]
[1740100989806,0.00761405,98288.0,98287.0,0.3952568]
[1740100997920,0.02400514,98288.0,98287.0,0.3952568]
[1740101001354,0.02400514,98288.0,98287.0,0.39521522]
[1740101014970,0.02400514,98288.0,98287.0,0.49786091]
[1740101016652,0.01639189,98288.0,98287.0,0.39521522]
[1740101016854,8e-07,98288.0,98287.0,0.39521522]
[1740101026354,8e-07,98288.0,98287.0,0.49786091]
[1740101035290,8e-07,98288.0,98287.0,0.39521522]
[1740101036188,8e-07,98288.0,98287.0,0.29347522]
[1740101036386,0.00762048,98288.0,98287.0,0.29347522]
[1740101037140,0.00762048,98288.0,98287.0,0.29197522]
[1740101039800,0.00762048,98288.0,98287.0,0.13936122]
[1740101039966,0.00762048,98288.0,98287.0,0.29197522]
[1740101040349,8e-07,98288.0,98287.0,0.13936122]
[1740101040477,8e-07,98288.0,98287.0,0.29197522]
[1740101041638,8e-07,98288.0,98287.0,0.13936122]
[1740101042040,8e-07,98288.0,98287.0,0.29197522]
[1740101042665,8e-07,98288.0,98287.0,0.13936122]
[1740101044169,8e-07,98288.0,98287.0,0.29197522]
[1740101044370,0.00762196,98288.0,98287.0,0.29197522]
[1740101050046,8e-07,98288.0,98287.0,0.29197522]
[1740101053457,0.007615,98288.0,98287.0,0.29197522]
[1740101055331,8e-07,98288.0,98287.0,0.29197522]
[1740101056579,0.1526128,98288.0,98287.0,0.13936122]
[1740101057227,8e-07,98288.0,98287.0,0.13936122]
[1740101057746,0.01639259,98288.0,98287.0,0.13936122]
[1740101057954,0.02400542,98288.0,98287.0,0.13936122]
[1740101060985,0.02400542,98288.0,98287.0,0.29197522]
[1740101066439,0.02400542,98288.0,98287.0,0.39462091]
[1740101066818,0.02400542,98288.0,98287.0,0.40469576]
[1740101067154,0.00761363,98288.0,98287.0,0.40469576]
[1740101067757,0.00761363,98288.0,98287.0,0.39462091]
[1740101067954,8e-07,98288.0,98287.0,0.39462091]
[1740101104305,8e-07,98288.0,98287.0,0.29197522]
[1740101104611,8e-07,98288.0,98287.0,0.27621522]
[1740101106149,0.01639372,98288.0,98287.0,0.12360122]
[1740101106514,0.16900572,98288.0,98287.0,0.12360122]
[1740101106730,0.02400654,98288.0,98287.0,0.12360122]
[1740101107266,0.0502283,98288.0,98287.0,0.12360122]
[1740101108036,0.2028403,98288.0,98287.0,0.12360122]
[1740101111996,0.2796403,98288.0,98287.0,0.12360122]
[1740101112198,0.29418115,98288.0,98287.0,0.12360122]
[1740101113592,0.29418115,98288.0,98287.0,0.11660122]
[1740101114167,0.29418115,98288.0,98287.0,0.0157028]
[1740101114516,0.29418115,98288.0,98287.0,0.0087028]
[1740101115375,0.29418115,98288.0,98287.0,0.0057028]
[1740101115647,0.29418115,98288.0,98287.0,0.0017028]
[1740101115785,0.29418115,98288.0,98287.0,0.0057028]
[1740101116135,0.29418115,98288.0,98287.0,0.0087028]
[1740101116546,0.29418115,98288.0,98287.0,0.0057028]
[1740101116978,0.29418115,98288.0,98287.0,0.0087028]
[1740101117489,0.29418115,98288.0,98287.0,0.0047028]
[1740101117953,0.29418115,98288.0,98287.0,0.0107028]
[1740101118141,0.29418115,98288.0,98287.0,0.0077028]
[1740101118352,0.29418115,98288.0,98287.0,0.0017028]
[1740101118526,0.29418115,98288.0,98287.0,0.0037028]
[1740101118856,0.29418115,98288.0,98287.0,0.0067028]
[1740101119162,0.29418115,98288.0,98287.0,0.0097028]
[1740101120078,0.44418115,98288.0,98287.0,0.0097028]
[1740101120407,0.49178115,98288.0,98287.0,0.0097028]
[1740101120611,0.49178115,98288.0,98287.0,0.0047028]
[1740101121015,0.49178115,98288.0,98287.0,0.0097028]
[1740101121294,0.49178115,98288.0,98287.0,0.0017028]
[1740101121728,0.49178115,98288.0,98287.0,0.0087028]
[1740101121915,0.49178115,98288.0,98287.0,0.0057028]
[1740101122199,0.59442684,98288.0,98287.0,0.0057028]
[1740101122417,0.59442684,98288.0,98287.0,0.0077028]
[1740101123184,0.59442684,98288.0,98287.0,0.0057028]
[1740101123593,0.59442684,98288.0,98287.0,0.0017028]
[1740101123969,0.59442684,98288.0,98287.0,0.0057028]
[1740101124401,0.56820508,98288.0,98287.0,0.0037028]
[1740101124784,0.56820508,98288.0,98287.0,0.0077028]
[1740101144694,0.56820508,98288.0,98287.0,0.0057028]
[1740101144938,0.56820508,98288.0,98287.0,0.0017028]
[1740101145148,0.56820508,98288.0,98287.0,0.0037028]
[1740101145660,0.56820508,98288.0,98287.0,0.0027028]
[1740101145865,0.56820508,98288.0,98287.0,0.0057028]
[1740101148915,0.56820508,98288.0,98287.0,0.0027028]
[1740101149106,0.56820508,98288.0,98287.0,0.0037028]
[1740101149707,0.56820508,98288.0,98287.0,0.0017028]
[1740101149998,0.58920508,98288.0,98287.0,8e-07]
[1740101150178,0.61957566,98288.0,98287.0,8e-07]
[1740101151547,0.60318274,98288.0,98287.0,8e-07]